bitfinex-derivatives/quotes_BTCF0:USTF0_20250504
["timestamp","ask_amount","ask_price","bid_price","bid_amount"]
[1746320108488,0.270368,95868.0,95867.0,0.21234959]
[1746320108689,0.301268,95868.0,95867.0,0.42091979]
[1746320109083,0.419268,95868.0,95867.0,0.42091979]
[1746320109690,0.423268,95868.0,95867.0,0.42191979]
[1746320110488,0.428268,95868.0,95867.0,0.42291979]
[1746320110685,0.428268,95868.0,95867.0,0.2105702]
[1746320113191,0.428268,95868.0,95867.0,0.22610987]
[1746320113391,0.42044568,95868.0,95867.0,0.22610987]
[1746320114995,0.38914568,95868.0,95867.0,0.24164263]
[1746320115784,0.38914568,95868.0,95867.0,0.30394263]
[1746320115994,0.38914568,95868.0,95867.0,0.66474263]
[1746320116195,0.26714568,95868.0,95867.0,0.66374263]
[1746320116396,0.27114568,95868.0,95867.0,0.66474263]
[1746320116794,0.26614568,95868.0,95867.0,0.66374263]
[1746320116989,0.26614568,95868.0,95867.0,0.64820987]
[1746320116990,0.27014568,95868.0,95867.0,0.64820987]
[1746320117196,0.365468,95868.0,95867.0,0.64820987]
[1746320117391,0.1569,95868.0,95867.0,0.64820987]
[1746320117593,0.361468,95868.0,95867.0,0.64820987]
[1746320117896,0.365468,95868.0,95867.0,0.66402774]
[1746320118093,0.247468,95868.0,95867.0,0.66402774]
[1746320118289,0.243468,95868.0,95867.0,0.66302774]
[1746320118495,0.245468,95868.0,95867.0,0.66302774]
[1746320118693,0.006,95868.0,95867.0,0.66302774]
[1746320118893,0.2606763,95882.0,95881.0,0.2085397]
[1746320119096,0.2606763,95882.0,95881.0,0.22435757]
[1746320119292,0.2606763,95882.0,95881.0,0.23989724]
[1746320120299,0.2606763,95882.0,95881.0,0.24028075]
[1746320120501,0.2656763,95882.0,95881.0,0.24128075]
[1746320120995,0.105,97100.0,95881.0,0.24128075]
[1746320120996,0.1,95900.0,95899.0,0.2085006]
[1746320121193,0.1,95900.0,95899.0,0.58550198]
[1746320121398,0.3085026,95900.0,95899.0,0.58550198]
[1746320121598,0.3085026,95900.0,95899.0,0.60104165]
[1746320122001,0.3175026,95900.0,95899.0,0.60204165]
[1746320122196,0.3497026,95900.0,95899.0,0.60998308]
[1746320122499,0.3497026,95900.0,95899.0,0.60204165]
[1746320122700,0.3547026,95900.0,95899.0,0.60304165]
[1746320123099,0.4727026,95900.0,95899.0,0.60304165]
[1746320123600,0.46088323,95900.0,95899.0,0.60304165]
[1746320124100,0.34288323,95900.0,95899.0,0.60304165]
[1746320125191,0.46088323,95900.0,95899.0,0.60304165]
[1746320125901,0.46088323,95900.0,95899.0,0.58684027]
[1746320126197,0.46088323,95900.0,95899.0,0.61984027]
[1746320127201,0.34288323,95900.0,95899.0,0.61984027]
[1746320129403,0.34288323,95900.0,95899.0,0.65034027]
[1746320134005,0.34288323,95900.0,95899.0,0.66581387]
[1746320134307,0.33506393,95900.0,95899.0,0.66581387]
[1746320134501,0.33506393,95900.0,95899.0,0.65034027]
[1746320134702,0.33506393,95900.0,95899.0,0.66581281]
[1746320136502,0.33506393,95900.0,95899.0,0.66589362]
[1746320138098,0.33506393,95900.0,95899.0,0.65034027]
[1746320138302,0.33506393,95900.0,95899.0,0.66591497]
[1746320143314,0.45306393,95900.0,95899.0,0.66591497]
[1746320144013,0.45306393,95900.0,95899.0,0.65034027]
[1746320144214,0.32724465,95900.0,95899.0,0.65034027]
[1746320149608,0.32724465,95900.0,95899.0,0.28954027]
[1746320151012,0.11874205,95900.0,95899.0,0.28954027]
[1746320151316,0.08654205,95900.0,95899.0,0.28954027]
[1746320151510,0.29504045,95900.0,95899.0,0.28954027]
[1746320152118,0.08654205,95900.0,95899.0,0.28954027]
[1746320152310,0.0325,95906.0,95905.0,0.2084875]
[1746320152512,0.2409853,95906.0,95905.0,0.5692875]
[1746320152712,0.2084845,95907.0,95906.0,0.2606019]
[1746320153019,0.2084845,95907.0,95906.0,0.3260019]
[1746320153407,0.2084845,95907.0,95906.0,0.34154157]
[1746320154412,0.2124845,95907.0,95906.0,0.34154157]
[1746320155414,0.20466555,95907.0,95906.0,0.34154157]
[1746320155615,0.20966555,95907.0,95906.0,0.34254157]
[1746320157015,0.20966555,95907.0,95906.0,0.55512292]
[1746320157217,0.20966555,95907.0,95906.0,0.57052171]
[1746320159515,0.009,95907.0,95906.0,0.57052171]
[1746320159721,0.2174832,95907.0,95906.0,0.57054927]
[1746320160222,0.2174832,95907.0,95906.0,0.35796792]
[1746320160828,0.2134832,95907.0,95906.0,0.35796792]
[1746320161219,0.2134832,95907.0,95906.0,0.3582071]
[1746320162217,0.2084832,95907.0,95906.0,0.3572071]
[1746320162417,0.0332,95908.0,95907.0,0.2084832]
[1746320162619,0.0332,95908.0,95907.0,0.3336884]
[1746320163021,0.241681,95908.0,95907.0,0.3336884]
[1746320163429,0.241681,95908.0,95907.0,0.6944884]
[1746320165930,0.23386205,95908.0,95907.0,0.6944884]
[1746320166225,0.23386205,95908.0,95907.0,0.69435917]
[1746320167115,0.23386205,95908.0,95907.0,0.67890511]
[1746320167524,0.23386205,95908.0,95907.0,0.6632832]
[1746320168330,0.23386205,95908.0,95907.0,0.87586455]
[1746320169132,0.23386205,95908.0,95907.0,0.81466455]
[1746320171531,0.23386205,95908.0,95907.0,0.6020832]
[1746320174234,0.23386205,95908.0,95907.0,0.6345832]
[1746320177237,0.23386205,95908.0,95907.0,0.6020832]
[1746320178227,0.35186205,95908.0,95907.0,0.6020832]
[1746320184038,0.35186205,95908.0,95907.0,0.81471978]
[1746320184339,0.35186205,95908.0,95907.0,0.45391978]
[1746320186531,0.35186205,95908.0,95907.0,0.48551978]
[1746320188037,0.35186205,95908.0,95907.0,0.45391978]
[1746320191040,0.35186205,95908.0,95907.0,0.24543658]
[1746320191642,0.35186205,95908.0,95907.0,0.48591978]
[1746320194244,0.23386205,95908.0,95907.0,0.48591978]
[1746320195144,0.35186205,95908.0,95907.0,0.48591978]
[1746320198952,0.35202603,95908.0,95907.0,0.48591978]
[1746320199243,0.35202603,95908.0,95907.0,0.30401759]
[1746320200348,0.14354503,95908.0,95907.0,0.2404832]
[1746320200545,0.35202603,95908.0,95907.0,0.2404832]
[1746320200738,0.14354503,95908.0,95907.0,0.2404832]
[1746320201145,0.02554503,95908.0,95907.0,0.2404832]
[1746320202140,0.001,95916.0,95907.0,0.032]
[1746320202346,0.2094636,95916.0,95915.0,0.2084658]
[1746320202547,0.2094636,95916.0,95915.0,0.2393658]
[1746320202946,0.2094636,95916.0,95915.0,0.25014312]
[1746320203446,0.2094636,95916.0,95915.0,0.2699658]
[1746320203649,0.2094636,95916.0,95915.0,0.2390658]
[1746320203839,0.2094636,95916.0,95914.0,0.3608]
[1746320203840,0.2084658,95915.0,95914.0,0.3608]
[1746320204040,0.2739658,95915.0,95914.0,0.3608]
[1746320204254,0.3919658,95915.0,95914.0,0.3608]
[1746320204541,0.3919658,95915.0,95914.0,0.569268]
[1746320206156,0.40264929,95915.0,95914.0,0.569268]
[1746320208453,0.40264929,95915.0,95914.0,0.3608]
[1746320209348,0.3919658,95915.0,95914.0,0.3608]
[1746320209557,0.3919658,95915.0,95914.0,0.569268]
[1746320211053,0.3919658,95915.0,95914.0,0.208468]
[1746320211445,0.4440826,95915.0,95912.0,0.0521179]
[1746320211645,0.4440826,95915.0,95914.0,0.208468]
[1746320220447,0.2605935,95911.0,95910.0,0.2084755]
[1746320221162,0.3785935,95911.0,95910.0,0.2084755]
[1746320222158,0.3264745,95911.0,95910.0,0.2400755]
[1746320222361,0.3264745,95911.0,95910.0,0.2724755]
[1746320234257,0.3264745,95911.0,95910.0,0.2084755]
[1746320235768,0.3264745,95911.0,95910.0,0.2401755]
[1746320243072,0.3264745,95911.0,95910.0,0.0317]
[1746320244075,0.208481,95908.0,95907.0,0.3608]
[1746320245175,0.326481,95908.0,95907.0,0.3608]
[1746320245664,0.326481,95908.0,95907.0,0.5692832]
[1746320246277,0.3373776,95908.0,95907.0,0.5692832]
[1746320246676,0.326481,95908.0,95907.0,0.5692832]
[1746320248273,0.326481,95908.0,95907.0,0.6334832]
[1746320253180,0.326481,95908.0,95907.0,0.3934]
[1746320253383,0.326481,95908.0,95907.0,0.3608]
[1746320254682,0.326481,95908.0,95907.0,0.5692832]
[1746320254984,0.326481,95908.0,95907.0,0.3608]
[1746320256683,0.326481,95908.0,95907.0,0.5692832]
[1746320260689,0.326481,95908.0,95907.0,0.3608]
[1746320265892,0.2084832,95907.0,95906.0,0.238585]
[1746320266093,0.3891832,95907.0,95906.0,0.238585]
[1746320267699,0.3891832,95907.0,95906.0,0.0301]
[1746320268795,0.3891832,95907.0,95906.0,0.2385853]
[1746320271089,0.3891832,95907.0,95906.0,0.0301]
[1746320271996,0.2085006,95899.0,95872.0,0.0521398]
[1746320272201,0.2085006,95899.0,95891.0,0.2085166]
[1746320272202,0.5693006,95899.0,95891.0,0.2085166]
[1746320272687,0.5693006,95899.0,95892.0,0.0328]
[1746320272895,0.6349006,95899.0,95892.0,0.0328]
[1746320273100,0.7529006,95899.0,95889.0,0.0319]
[1746320273485,0.2085027,95898.0,95893.0,0.26604482]
[1746320273686,0.2085114,95894.0,95893.0,0.26604482]
[1746320274191,0.3265114,95894.0,95893.0,0.27383079]
[1746320274695,0.3912114,95894.0,95893.0,0.27383079]
[1746320276900,0.3912114,95894.0,95893.0,0.30393079]
[1746320278692,0.3912114,95894.0,95893.0,0.03788597]
[1746320283004,0.3912114,95894.0,95893.0,0.00778597]
[1746320283205,0.2085158,95892.0,95891.0,0.0321]
[1746320283796,0.2085158,95892.0,95891.0,0.0626]
[1746320284205,0.3265158,95892.0,95891.0,0.0626]
[1746320285101,0.2085223,95889.0,95888.0,0.21241581]
[1746320286007,0.2744223,95889.0,95888.0,0.21241581]
[1746320286213,0.3924223,95889.0,95888.0,0.21241581]
[1746320286607,0.2085288,95886.0,95885.0,0.21241581]
[1746320287198,0.3265288,95886.0,95885.0,0.21241581]
[1746320287406,0.3908288,95886.0,95885.0,0.22015257]
[1746320288301,0.3908288,95886.0,95885.0,0.42868357]
[1746320288502,0.3908288,95886.0,95885.0,0.45878357]
[1746320288810,0.3908288,95886.0,95885.0,0.25025257]
[1746320289498,0.3908288,95886.0,95885.0,0.28185257]
[1746320290995,0.3908288,95886.0,95885.0,0.06943676]
[1746320297312,0.3593288,95886.0,95885.0,0.27796776]
[1746320297510,0.3265288,95886.0,95885.0,0.27796776]
[1746320298104,0.2085288,95886.0,95885.0,0.27796776]
[1746320302407,0.2085288,95886.0,95885.0,0.49038357]
[1746320304707,0.2085288,95886.0,95885.0,0.28185257]
[1746320308116,0.2085288,95886.0,95885.0,0.06943676]
[1746320308516,0.2085288,95886.0,95885.0,0.00773676]
[1746320308720,0.2085397,95881.0,95880.0,0.0315]
[1746320309122,0.2085397,95881.0,95880.0,0.0625]
[1746320309321,0.2085397,95881.0,95880.0,0.2710419]
[1746320309514,0.2402397,95881.0,95880.0,0.2710419]
[1746320310427,0.2402397,95881.0,95880.0,0.2788792]
[1746320312526,0.2402397,95881.0,95880.0,0.0703373]
[1746320313725,0.2402397,95881.0,95880.0,0.2788792]
[1746320314826,0.2402397,95881.0,95880.0,0.0703373]
[1746320316027,0.2402397,95881.0,95880.0,0.2788792]
[1746320319929,0.2402397,95881.0,95880.0,0.0703373]
[1746320321134,0.2402397,95881.0,95880.0,0.2788792]
[1746320321531,0.2402397,95881.0,95880.0,0.0703373]
[1746320322136,0.2402397,95881.0,95880.0,0.28294963]
[1746320322729,0.2402397,95881.0,95880.0,0.49149153]
[1746320322929,0.2402397,95881.0,95880.0,0.28294963]
[1746320324730,0.2402397,95881.0,95880.0,0.49149153]
[1746320324934,0.2402397,95881.0,95880.0,0.28294963]
[1746320325731,0.2402397,95881.0,95880.0,0.0703373]
[1746320328242,0.3582397,95881.0,95880.0,0.0703373]
[1746320332147,0.2402397,95881.0,95880.0,0.0703373]
[1746320334144,0.3582397,95881.0,95880.0,0.0703373]
[1746320337846,0.7190397,95881.0,95880.0,0.0703373]
[1746320341150,0.7190397,95881.0,95880.0,0.0393373]
[1746320342552,0.7190397,95881.0,95880.0,0.0078373]
[1746320342750,0.2085506,95876.0,95875.0,0.26604482]
[1746320343257,0.3265506,95876.0,95875.0,0.26604482]
[1746320343941,0.3906506,95876.0,95875.0,0.26604482]
[1746320344341,0.3906506,95876.0,95875.0,0.29894482]
[1746320344851,0.3906506,95876.0,95875.0,0.50749762]
[1746320345442,0.3906506,95876.0,95875.0,0.0329]
[1746320346951,0.3906506,95876.0,95875.0,0.04085607]
[1746320356557,0.3906506,95876.0,95875.0,0.07305607]
[1746320363556,0.2085549,95874.0,95873.0,0.26604482]
[1746320363756,0.2085549,95874.0,95873.0,0.27401821]
[1746320364260,0.3265549,95874.0,95873.0,0.27401821]
[1746320364553,0.3265549,95874.0,95873.0,0.00797339]
[1746320364756,0.2085571,95873.0,95872.0,0.26604482]
[1746320364953,0.2712571,95873.0,95872.0,0.26604482]
[1746320365154,0.3892571,95873.0,95872.0,0.26604482]
[1746320367963,0.3892571,95873.0,95872.0,0.21260437]
[1746320368765,0.3892571,95873.0,95872.0,0.22029323]
[1746320372163,0.3892571,95873.0,95872.0,0.00768886]
[1746320372361,0.2085593,95872.0,95871.0,0.21260437]
[1746320372863,0.2715593,95872.0,95871.0,0.21260437]
[1746320373162,0.3895593,95872.0,95871.0,0.21260437]
[1746320373364,0.3895593,95872.0,95871.0,0.2203884]
[1746320375866,0.3895593,95872.0,95871.0,0.00778403]
[1746320376062,0.2085615,95871.0,95870.0,0.21260437]
[1746320376572,0.2721615,95871.0,95870.0,0.21260437]
[1746320377068,0.3901615,95871.0,95870.0,0.21260437]
[1746320378062,0.3901615,95871.0,95870.0,0.22024446]
[1746320380362,0.3901615,95871.0,95870.0,0.00764009]
[1746320380562,0.2085658,95869.0,95868.0,0.2720679]
[1746320381172,0.3265658,95869.0,95868.0,0.2720679]
[1746320382563,0.3265658,95869.0,95868.0,0.6328679]
[1746320383665,0.3265658,95869.0,95868.0,0.64059169]
[1746320388966,0.3265658,95869.0,95868.0,0.07122379]
[1746320389368,0.3265658,95869.0,95868.0,0.55021777]
[1746320393679,0.3265658,95869.0,95868.0,0.07122379]
[1746320394079,0.2085658,95869.0,95868.0,0.07122379]
[1746320394581,0.2391658,95869.0,95868.0,0.07122379]
[1746320395077,0.3571658,95869.0,95868.0,0.07122379]
[1746320395279,0.3880658,95869.0,95868.0,0.07122379]
[1746320401080,0.2085702,95867.0,95866.0,0.1453928]
[1746320401677,0.3880668,95869.0,95868.0,0.208568]
[1746320403881,0.2085702,95867.0,95866.0,0.21654633]
[1746320404079,0.2085702,95867.0,95866.0,0.2085712]
[1746320404381,0.3265702,95867.0,95866.0,0.2085712]
[1746320406173,0.3265702,95867.0,95866.0,0.21640474]
[1746320406484,0.3265702,95867.0,95866.0,0.42970116]
[1746320408186,0.2085702,95867.0,95866.0,0.42970116]
[1746320408385,0.2085702,95867.0,95866.0,0.22112996]
[1746320408685,0.2085702,95867.0,95866.0,0.42970226]
[1746320409187,0.3265702,95867.0,95866.0,0.42970226]
[1746320415084,0.3265702,95867.0,95866.0,0.21640584]
[1746320419195,0.3265702,95867.0,95866.0,0.48226247]
[1746320422195,0.118,95867.0,95866.0,0.48226247]
[1746320422791,0.1797,95867.0,95866.0,0.48226247]
[1746320424197,0.1797,95867.0,95866.0,0.42951869]
[1746320424400,0.1486,95867.0,95866.0,0.53383069]
[1746320424695,0.1486,95867.0,95866.0,0.56433069]
[1746320425087,0.0306,95867.0,95866.0,0.56433069]
[1746320429298,0.0306,95867.0,95866.0,0.59573069]
[1746320430098,0.0306,95867.0,95866.0,0.49141869]
[1746320442807,0.0306,95867.0,95866.0,0.46091869]
[1746320444306,0.0306,95867.0,95866.0,0.42951869]
[1746320445614,0.0306,95867.0,95866.0,0.48208263]
[1746320450213,0.0306,95867.0,95866.0,0.21640584]
[1746320451621,0.0306,95867.0,95866.0,0.27930584]
[1746320453212,0.1486,95867.0,95866.0,0.27930584]
[1746320453814,0.1486,95867.0,95866.0,0.49224569]
[1746320454219,0.0306,95867.0,95866.0,0.49224569]
[1746320457722,0.0306,95867.0,95866.0,0.85304569]
[1746320458822,0.0306,95867.0,95866.0,0.79014569]
[1746320460620,0.0306,95867.0,95866.0,0.82044569]
[1746320461924,0.0306,95867.0,95866.0,0.79014569]
[1746320465723,0.0306,95867.0,95866.0,0.85506569]
[1746320467222,0.1486,95867.0,95866.0,0.85506569]
[1746320467423,0.3571702,95867.0,95866.0,0.64649339]
[1746320467824,0.3571702,95867.0,95866.0,0.22077339]
[1746320468026,0.3571702,95867.0,95866.0,0.42934569]
[1746320469926,0.1486,95867.0,95866.0,0.42934569]
[1746320470524,0.1486,95867.0,95866.0,0.2085723]
[1746320470723,0.2085789,95863.0,95862.0,0.47434584]
[1746320471231,0.3265789,95863.0,95862.0,0.47434584]
[1746320471932,0.3265789,95863.0,95862.0,0.48206518]
[1746320472231,0.7916949,95863.0,95862.0,0.26576524]
[1746320472427,0.7916949,95863.0,95852.0,0.3190346]
[1746320472428,0.2086006,95853.0,95852.0,0.3190346]
[1746320472735,0.208642,95835.0,95833.0,0.42454174]
[1746320472934,0.241942,95834.0,95833.0,0.63318594]
[1746320473139,0.359942,95834.0,95833.0,0.63318594]
[1746320473837,0.1513,95834.0,95833.0,0.64084427]
[1746320474838,0.1513,95834.0,95833.0,0.26846333]
[1746320479929,0.359942,95834.0,95833.0,0.00765833]
[1746320480133,0.2086442,95833.0,95832.0,0.06640523]
[1746320480332,0.2711442,95833.0,95832.0,0.06640523]
[1746320480734,0.2711442,95833.0,95832.0,0.07424581]
[1746320481244,0.3891442,95833.0,95832.0,0.07424581]
[1746320482033,0.3891442,95833.0,95832.0,0.00940581]
[1746320482639,0.7499442,95833.0,95832.0,0.00940581]
[1746320484643,0.7499442,95833.0,95832.0,0.21805211]
[1746320487542,0.7499442,95833.0,95832.0,0.00940581]
[1746320493448,0.7499442,95833.0,95832.0,0.21805211]
[1746320494348,0.7499442,95833.0,95832.0,0.00940581]
[1746320495045,0.8542922,95833.0,95832.0,0.00940581]
[1746320495845,0.8542922,95833.0,95832.0,0.00156523]
[1746320502748,0.4934922,95833.0,95832.0,0.00156523]
[1746320502954,0.8542922,95833.0,95832.0,0.00156523]
[1746320507557,0.8552922,95833.0,95832.0,0.00556523]
[1746320510856,0.2086507,95830.0,95829.0,7.91e-05]
[1746320511248,0.4310027,95830.0,95829.0,7.91e-05]
[1746320511757,0.4617027,95830.0,95829.0,7.91e-05]
[1746320512259,0.4627027,95830.0,95829.0,0.0050791]
[1746320518764,0.5575027,95830.0,95829.0,0.0050791]
[1746320518966,0.5575027,95830.0,95829.0,0.005]
[1746320519163,0.5575027,95830.0,95825.0,0.00104356]
[1746320519164,0.2086594,95826.0,95825.0,0.00104356]
[1746320519367,0.6870594,95826.0,95825.0,6e-08]
[1746320519558,0.7914154,95826.0,95825.0,6e-08]
[1746320519962,0.8853154,95826.0,95825.0,6e-08]
[1746320520157,1.0033154,95826.0,95825.0,6e-08]
[1746320520358,1.0033154,95826.0,95825.0,0.00400006]
[1746320520555,1.0043154,95826.0,95825.0,0.00400006]
[1746320523758,0.9443154,95826.0,95825.0,0.00400006]
[1746320523959,0.9119154,95826.0,95825.0,0.00400006]
[1746320526669,0.7775594,95826.0,95825.0,0.00400006]
[1746320526863,0.7460594,95826.0,95825.0,0.00400006]
[1746320527367,0.6280594,95826.0,95825.0,0.00400006]
[1746320530273,0.2096594,95826.0,95825.0,0.00400006]
[1746320534075,0.3276594,95826.0,95825.0,0.00400006]
[1746320539267,0.2096594,95826.0,95825.0,0.21266166]
[1746320539670,0.001,95826.0,95825.0,0.21266166]
[1746320539972,0.2096594,95826.0,95825.0,0.21266166]
[1746320540279,0.2096594,95826.0,95825.0,0.27396166]
[1746320540870,0.001,95826.0,95825.0,0.27396166]
[1746320541474,0.2096594,95826.0,95825.0,0.27396166]
[1746320561275,0.2422594,95826.0,95825.0,0.27396166]
[1746320582297,0.0336,95826.0,95825.0,0.27396166]
[1746320582789,0.0015,95850.0,95848.0,0.2086115]
[1746320582994,0.31974238,95849.0,95848.0,0.2086115]
[1746320583193,0.35284238,95849.0,95848.0,0.2086115]
[1746320584096,0.38494238,95849.0,95848.0,0.2687115]
[1746320584493,0.38794238,95849.0,95848.0,0.2687115]
[1746320585198,0.50594238,95849.0,95848.0,0.2687115]
[1746320586107,0.4263093,95849.0,95848.0,0.2386115]
[1746320586400,0.4263093,95849.0,95845.0,0.2086165]
[1746320586401,0.2607745,95846.0,95845.0,0.2086165]
[1746320587287,0.2917745,95846.0,95845.0,0.2086165]
[1746320587601,0.2937745,95846.0,95845.0,0.2096165]
[1746320592504,0.2416202,95846.0,95845.0,0.2096165]
[1746320592697,0.2416202,95846.0,95845.0,0.22015268]
[1746320594895,0.2416202,95846.0,95845.0,0.2096165]
[1746320611315,0.2416202,95846.0,95845.0,0.2742165]
[1746320612126,0.151,95846.0,95845.0,0.2742165]
[1746320612828,0.208575,95869.0,95868.0,0.2607025]
[1746320613023,0.0308,95871.0,95870.0,0.2085636]
[1746320613226,0.2393615,95871.0,95870.0,0.2085636]
[1746320613427,0.9877536,95875.0,95871.0,0.2085615]
[1746320613827,0.2085566,95874.0,95871.0,0.2085615]
[1746320614024,0.2085579,95873.0,95871.0,0.2085615]
[1746320614226,0.0305,95873.0,95871.0,0.2085615]
[1746320615123,0.0305,95873.0,95872.0,0.2085593]
[1746320615525,0.2390571,95873.0,95872.0,0.2085593]
[1746320615730,0.0305,95873.0,95872.0,0.2085593]
[1746320615933,0.0311,95874.0,95873.0,0.2085571]
[1746320618328,0.2446549,95874.0,95873.0,0.2095571]
[1746320619936,0.2775549,95874.0,95873.0,0.2095571]
[1746320625433,0.2775549,95874.0,95873.0,0.2402571]
[1746320630249,0.3955549,95874.0,95873.0,0.2402571]
[1746320631143,0.1541,95874.0,95873.0,0.2402571]
[1746320631545,0.1541,95874.0,95873.0,0.2733571]
[1746320632251,0.0015,95885.0,95884.0,0.2085332]
[1746320632854,0.0015,95885.0,95884.0,0.2395332]
[1746320633152,0.1195,95885.0,95884.0,0.2395332]
[1746320633546,0.390331,95885.0,95884.0,0.2708332]
[1746320633939,0.422131,95885.0,95884.0,0.2708332]
[1746320634353,0.427131,95885.0,95884.0,0.2718332]
[1746320639056,0.427131,95885.0,95884.0,0.0633]
[1746320639351,0.427131,95885.0,95884.0,0.2408332]
[1746320640452,0.427131,95885.0,95884.0,0.0323]
[1746320641045,0.427131,95885.0,95884.0,0.2408332]
[1746320644151,0.427131,95885.0,95884.0,0.0323]
[1746320645058,0.427131,95885.0,95884.0,0.2408332]
[1746320648762,0.427131,95885.0,95884.0,0.08838222]
[1746320652660,0.427131,95885.0,95884.0,0.12128222]
[1746320671777,0.427131,95885.0,95884.0,0.0329]
[1746320672078,0.427131,95885.0,95884.0,0.2414332]
[1746320672277,0.427131,95885.0,95884.0,0.2730332]
[1746320675079,0.427131,95885.0,95884.0,0.0329]
[1746320676677,0.427131,95885.0,95884.0,0.2414332]
[1746320679085,0.427131,95885.0,95883.0,0.0313]
[1746320679682,0.427131,95885.0,95884.0,0.2085332]
[1746320680983,0.422131,95885.0,95884.0,0.2085332]
[1746320681380,0.428131,95885.0,95884.0,0.2085332]
[1746320682071,0.422131,95885.0,95884.0,0.2085332]
[1746320682276,0.428131,95885.0,95884.0,0.2095332]
[1746320682579,0.428131,95885.0,95884.0,0.2085332]
[1746320682785,0.427131,95885.0,95884.0,0.2095332]
[1746320689491,0.427131,95885.0,95884.0,0.001]
[1746320689986,0.427131,95885.0,95884.0,0.2095332]
[1746320698087,0.427131,95885.0,95884.0,0.001]
[1746320703997,0.787931,95885.0,95884.0,0.001]
[1746320704500,0.756431,95885.0,95884.0,0.001]
[1746320704695,0.756431,95885.0,95884.0,0.2095332]
[1746320704900,0.1553,95885.0,95884.0,0.5703332]
[1746320705100,0.1245,95885.0,95884.0,0.5703332]
[1746320705294,0.0065,95885.0,95884.0,0.5703332]
[1746320705494,0.0065,95885.0,95884.0,0.6316332]
[1746320707801,0.0065,95885.0,95884.0,0.6422826]
[1746320708801,0.0015,95885.0,95884.0,0.6412826]
[1746320709108,0.0065,95885.0,95884.0,0.7602826]
[1746320709415,0.07963308,95895.0,95894.0,0.2085114]
[1746320709607,0.0329,95900.0,95899.0,0.2085006]
[1746320710111,0.0311,95908.0,95907.0,0.2084832]
[1746320710407,0.13175038,95914.0,95911.0,0.2084745]
[1746320710408,0.2403743,95912.0,95911.0,0.2084745]
[1746320711107,0.3583743,95912.0,95911.0,0.2084745]
[1746320711301,0.3264743,95912.0,95911.0,0.2396745]
[1746320711499,0.118,95912.0,95911.0,0.2396745]
[1746320711698,0.128,95912.0,95911.0,0.2406745]
[1746320712111,0.01,95912.0,95911.0,0.2406745]
[1746320713708,0.0308,95915.0,95914.0,0.208468]
[1746320714211,0.001,95916.0,95915.0,0.2084658]
[1746320715107,0.119,95916.0,95915.0,0.2731658]
[1746320716198,0.124,95916.0,95915.0,0.2731658]
[1746320717914,0.3324636,95916.0,95915.0,0.0326]
[1746320718115,0.3973636,95916.0,95915.0,0.0326]
[1746320718313,0.4494799,95916.0,95915.0,0.2084658]
[1746320718813,0.0521168,95915.0,95911.0,0.0644]
[1746320719013,0.2084788,95909.0,95908.0,0.3608]
[1746320719312,0.208494,95902.0,95900.0,0.3608]
[1746320720102,0.326494,95902.0,95900.0,0.3608]
[1746320720313,0.390794,95902.0,95900.0,0.3608]
[1746320720916,0.390794,95902.0,95894.0,0.27283]
[1746320721618,0.392794,95902.0,95895.0,0.2085088]
[1746320721819,0.2085093,95895.0,95894.0,0.06432]
[1746320722120,0.2085267,95887.0,95886.0,0.2931528]
[1746320722414,0.2085267,95887.0,95886.0,0.3574728]
[1746320723120,0.3265267,95887.0,95886.0,0.3574728]
[1746320723321,0.3265267,95887.0,95886.0,0.3249728]
[1746320724416,0.3275267,95887.0,95886.0,0.3249728]
[1746320724917,0.3901267,95887.0,95886.0,0.3249728]
[1746320725418,0.1816,95887.0,95886.0,0.3249728]
[1746320728918,0.1504,95887.0,95886.0,0.3249728]
[1746320729607,0.1504,95887.0,95886.0,0.3888728]
[1746320733120,0.119,95887.0,95886.0,0.3888728]
[1746320733318,0.032,95897.0,95896.0,0.2085071]
[1746320733523,0.032,95897.0,95896.0,0.5693071]
[1746320734026,0.032,95897.0,95896.0,0.6326071]
[1746320734319,0.15,95897.0,95896.0,0.6326071]
[1746320734715,0.001,95916.0,95896.0,0.52838]
[1746320734918,0.001,95916.0,95910.0,0.3608]
[1746320734919,0.0327,95913.0,95910.0,0.3608]
[1746320735120,0.1507,95913.0,95912.0,0.2084723]
[1746320735719,0.1507,95913.0,95912.0,0.2410723]
[1746320737027,0.1537,95913.0,95912.0,0.2410723]
[1746320737523,0.1507,95913.0,95912.0,0.2410723]
[1746320737716,0.1547,95913.0,95912.0,0.2410723]
[1746320740221,0.0367,95913.0,95912.0,0.2410723]
[1746320740616,0.004,95913.0,95912.0,0.2410723]
[1746320744125,0.004,95913.0,95912.0,0.6018723]
[1746320745116,0.122,95913.0,95912.0,0.6018723]
[1746320749731,0.122,95913.0,95912.0,0.6349723]
[1746320756027,0.1527,95913.0,95912.0,0.6349723]
[1746320760035,0.001,95916.0,95915.0,0.2084658]
[1746320760234,0.2084335,95930.0,95919.0,0.2084571]
[1746320760441,0.2084335,95930.0,95919.0,0.2727371]
[1746320760928,0.2084354,95929.0,95919.0,0.2727371]
[1746320761134,0.1195,95920.0,95919.0,0.2727371]
[1746320763736,0.1225,95920.0,95919.0,0.2727371]
[1746320764144,0.1225,95920.0,95919.0,0.28047496]
[1746320766848,0.1225,95920.0,95919.0,0.64127496]
[1746320767547,0.1225,95920.0,95919.0,0.85341999]
[1746320772448,0.3309549,95920.0,95919.0,0.64496289]
[1746320772648,0.1225,95920.0,95919.0,0.85341999]
[1746320772850,0.1225,95920.0,95919.0,0.64127496]
[1746320778961,0.1225,95920.0,95919.0,0.28047496]
[1746320779161,0.1225,95920.0,95919.0,0.64127496]
[1746320780163,0.1225,95920.0,95919.0,0.28047496]
[1746320780667,0.1225,95920.0,95919.0,0.64127496]
[1746320781763,0.1225,95920.0,95919.0,0.67277496]
[1746320788763,0.1225,95920.0,95919.0,0.58922228]
[1746320788966,0.1225,95920.0,95919.0,0.59700367]
[1746320802675,0.3309549,95920.0,95919.0,0.59700367]
[1746320802981,0.1225,95920.0,95919.0,0.59700367]
[1746320809375,0.1225,95920.0,95919.0,0.23620367]
[1746320809675,0.1225,95920.0,95919.0,0.59700367]
[1746320810376,0.1225,95920.0,95919.0,0.23620367]
[1746320810678,0.1225,95920.0,95919.0,0.59700367]
[1746320811978,0.1225,95920.0,95919.0,0.53276367]
[1746320812183,0.3309549,95920.0,95919.0,0.57703849]
[1746320813784,0.3309549,95920.0,95919.0,0.21623849]
[1746320818300,0.4352109,95920.0,95919.0,0.00778139]
[1746320818491,0.2084571,95919.0,95918.0,0.21258273]
[1746320818696,0.2084788,95909.0,95908.0,0.0642]
[1746320819097,0.208481,95908.0,95906.0,0.208485]
[1746320819298,0.270381,95908.0,95906.0,0.208485]
[1746320819909,0.270381,95908.0,95897.0,0.425]